fUST/lending_fUST_20250810
["ID","MTS","AMOUNT","RATE_DAILY","PERIOD"]
[378321723,1754825443299,-460.0,0.00021982,2]
[378321725,1754825443308,-460.0,0.00021982,2]
[378321728,1754825443317,-460.0,0.00021982,2]
[378321730,1754825443326,-460.0,0.00021982,2]
[378321732,1754825443335,-2411.13,0.00021982,2]
[378321734,1754825443344,-522.04,0.00021982,2]
[378321736,1754825443354,-460.0,0.00021983,2]
[378321738,1754825443363,-460.0,0.00021983,2]
[378321740,1754825443372,-460.0,0.00021983,2]
[378321742,1754825443382,-744.78,0.00021983,2]
[378321744,1754825443391,-550.24,0.00021983,2]
[378321746,1754825443400,-460.0,0.00021983,2]
[378321748,1754825443410,-476.85,0.00021983,2]
[378321750,1754825443419,-460.0,0.00021983,2]
[378321752,1754825443429,-2087.41,0.00021983,2]
[378321754,1754825443439,-520.53,0.00021983,2]
[378321756,1754825443448,-1105.5,0.00022,2]
[378321758,1754825443458,-717.2,0.00022019,2]
[378321760,1754825443467,-12668.57659669,0.00022127,2]
[378321762,1754825443476,-160.0,0.00022127,2]
[378321764,1754825443486,-231.96268195,0.00022127,2]
[378321766,1754825443495,-312.16666667,0.00022127,2]
[378321767,1754825443504,-160.0,0.00022127,2]
[378321768,1754825443513,-461.62346162,0.00022127,2]
[378321769,1754825443522,-160.0,0.00022127,2]
[378321770,1754825443531,-160.0,0.00022127,2]
[378321771,1754825443540,-160.0,0.00022127,2]
[378321772,1754825443549,-160.0,0.00022127,2]
[378321773,1754825443558,-527.86640923,0.00022127,2]
[378321774,1754825443567,-160.0,0.00022127,2]
[378321775,1754825443576,-215.44987349,0.00022127,2]
[378321776,1754825443585,-843.0869304,0.00022127,2]
[378321777,1754825443594,-216.64838636,0.00022127,2]
[378321779,1754825443604,-160.0,0.00022127,2]
[378321781,1754825443613,-160.0,0.00022127,2]
[378321783,1754825443623,-151.0,0.00022129,2]
[378321785,1754825443633,-151.0,0.00022129,2]
[378321787,1754825443642,-151.0,0.00022129,2]
[378321789,1754825443651,-151.0,0.00022129,2]
[378321791,1754825443660,-151.0,0.00022129,2]
[378321793,1754825443669,-151.0,0.00022129,2]
[378321795,1754825443678,-151.0,0.00022129,2]
[378321797,1754825443687,-151.0,0.00022129,2]
[378321799,1754825443697,-151.0,0.00022129,2]
[378321801,1754825443706,-151.0,0.00022129,2]
[378321803,1754825443715,-19897.22545671,0.00022129,2]
[378321805,1754825443725,-151.0,0.00022129,2]
[378321807,1754825443734,-250.0,0.00022129,2]
[378321809,1754825443744,-151.0,0.00022129,2]
[378321811,1754825443753,-151.0,0.00022129,2]
[378321813,1754825443762,-151.0,0.00022129,2]
[378321815,1754825443771,-151.0,0.00022129,2]
[378321817,1754825443780,-250.0,0.00022129,2]
[378321819,1754825443790,-151.0,0.00022129,2]
[378321821,1754825443799,-151.0,0.00022129,2]
[378321823,1754825443809,-151.0,0.00022129,2]
[378321825,1754825443818,-151.0,0.00022129,2]
[378321828,1754825443827,-151.0,0.00022129,2]
[378321830,1754825443836,-250.0,0.00022129,2]
[378321832,1754825443845,-151.0,0.00022129,2]
[378321834,1754825443854,-151.0,0.00022129,2]
[378321836,1754825443864,-151.0,0.00022129,2]
[378321838,1754825443873,-250.0,0.00022129,2]
[378321840,1754825443882,-2183.31810187,0.00022129,2]
[378321842,1754825443891,-151.0,0.00022129,2]
[378321843,1754825443900,-151.0,0.00022129,2]
[378321845,1754825443910,-151.0,0.00022129,2]
[378321847,1754825443919,-151.0,0.00022129,2]
[378321849,1754825443929,-250.0,0.00022129,2]
[378321852,1754825443939,-151.0,0.00022129,2]
[378321854,1754825443948,-151.0,0.00022129,2]
[378321856,1754825443957,-151.0,0.00022129,2]
[378321858,1754825443966,-151.0,0.00022129,2]
[378321860,1754825443975,-250.0,0.00022129,2]
[378321861,1754825443984,-151.0,0.00022129,2]
[378321863,1754825443994,-151.0,0.00022129,2]
[378321866,1754825444004,-151.0,0.00022129,2]
[378321868,1754825444014,-250.0,0.00022129,2]
[378321870,1754825444023,-151.0,0.00022129,2]
[378321872,1754825444032,-151.0,0.00022129,2]
[378321873,1754825444041,-151.0,0.00022129,2]
[378321875,1754825444051,-151.0,0.00022129,2]
[378321877,1754825444060,-250.0,0.00022129,2]
[378321879,1754825444070,-151.0,0.00022129,2]
[378321881,1754825444080,-151.0,0.00022129,2]
[378321883,1754825444090,-151.0,0.00022129,2]
[378321885,1754825444099,-151.0,0.00022129,2]
[378321887,1754825444109,-250.0,0.00022129,2]
[378321889,1754825444119,-151.0,0.00022129,2]
[378321891,1754825444127,-151.0,0.00022129,2]
[378321893,1754825444137,-256.01205118,0.00022129,2]
[378321895,1754825444147,-151.0,0.00022129,2]
[378321897,1754825444158,-250.0,0.00022129,2]
[378321899,1754825444167,-151.0,0.00022129,2]
[378321901,1754825444176,-151.0,0.00022129,2]
[378321903,1754825444186,-250.0,0.00022129,2]
[378321905,1754825444195,-233.80049677,0.00022129,2]
[378321907,1754825444205,-151.0,0.00022129,2]
[378321909,1754825444214,-250.0,0.00022129,2]
[378321911,1754825444224,-250.0,0.00022129,2]
[378321913,1754825444233,-300.0,0.00022129,2]
[378321915,1754825444242,-300.0,0.00022129,2]
[378321917,1754825444251,-300.0,0.00022129,2]
[378321919,1754825444260,-300.0,0.00022129,2]
[378321921,1754825444269,-300.0,0.00022129,2]
[378321923,1754825444278,-300.0,0.00022129,2]
[378321925,1754825444287,-300.0,0.00022129,2]
[378321927,1754825444296,-175.08619238,0.00022129,2]
[378321929,1754825444305,-151.0,0.00022129,2]
[378321931,1754825444315,-500.0,0.00022129,2]
[378321933,1754825444324,-500.0,0.00022129,2]
[378321935,1754825444333,-151.0,0.00022129,2]
[378321937,1754825444342,-151.0,0.00022129,2]
[378321939,1754825444351,-500.0,0.00022129,2]
[378321941,1754825444360,-151.0,0.00022129,2]
[378321943,1754825444369,-500.0,0.00022129,2]
[378321945,1754825444378,-151.0,0.00022129,2]
[378321947,1754825444387,-500.0,0.00022129,2]
[378321949,1754825444396,-500.0,0.00022129,2]
[378321951,1754825444405,-151.0,0.00022129,2]
[378321953,1754825444414,-500.0,0.00022129,2]
[378321955,1754825444423,-151.0,0.00022129,2]
[378321957,1754825444433,-500.0,0.00022129,2]
[378321959,1754825444441,-151.0,0.00022129,2]
[378321961,1754825444451,-500.0,0.00022129,2]
[378321963,1754825444460,-151.0,0.00022129,2]
[378321965,1754825444469,-500.0,0.00022129,2]
[378321967,1754825444478,-500.0,0.00022129,2]
[378321969,1754825444487,-151.0,0.00022129,2]
[378321971,1754825444496,-460.0,0.00022156,2]
[378321973,1754825444505,-460.0,0.00022157,2]
[378321975,1754825444514,-460.0,0.00022157,2]
[378321977,1754825444524,-731.64,0.00022157,2]
[378321979,1754825444532,-896.6,0.00022157,2]
[378321981,1754825444541,-2537.65,0.00022157,2]
[378321983,1754825444551,-460.0,0.00022157,2]
[378321985,1754825444560,-1003.15,0.00022157,2]
[378321987,1754825444568,-460.0,0.00022157,2]
[378321988,1754825444577,-460.0,0.00022157,2]
[378321991,1754825444588,-464.59,0.00022157,2]
[378321992,1754825444597,-500.93,0.00022157,2]
[378321994,1754825444606,-460.0,0.00022157,2]
[378321996,1754825444615,-274.82505721,0.00022157,2]
[378321999,1754825444624,-460.0,0.00022157,2]
[378322000,1754825444633,-460.0,0.00022157,2]
[378322003,1754825444642,-900.83,0.00022157,2]
[378322004,1754825444652,-596.88925025,0.00022173,2]
[378322006,1754825444661,-150.0,0.00022173,2]
[378322008,1754825444670,-500.0,0.00022173,2]
[378322010,1754825444679,-2264.10087164,0.00022184,2]
[378322013,1754825444690,-2347.87260389,0.00022239,2]
[378322015,1754825444700,-308.663711,0.0002224,7]
[378322017,1754825444709,-308.663711,0.0002224,7]
[378322019,1754825444718,-151.0,0.0002224,7]
[378322021,1754825444727,-151.0,0.0002224,7]
[378322023,1754825444736,-209.25,0.00022256,2]
[378322024,1754825444745,-460.0,0.00022256,2]
[378322026,1754825444755,-536.52921865,0.00022256,2]
[378322028,1754825444764,-460.0,0.00022256,2]
[378322030,1754825444775,-2411.13,0.00022256,2]
[378322032,1754825444784,-522.04,0.00022256,2]
[378322034,1754825444793,-175.72,0.00022257,2]
[378322036,1754825444802,-460.0,0.00022257,2]
[378322038,1754825444811,-496.1133236,0.00022257,2]
[378322040,1754825444820,-744.78,0.00022257,2]
[378322042,1754825444829,-550.24,0.00022257,2]
[378322044,1754825444839,-460.0,0.00022257,2]
[378322047,1754825444849,-476.85,0.00022257,2]
[378322049,1754825444859,-460.0,0.00022257,2]
[378322051,1754825444868,-2087.41,0.00022257,2]
[378322053,1754825444877,-520.53,0.00022257,2]
[378322054,1754825444887,-717.2,0.00022293,2]
[378322067,1754825444997,-160.0,0.00022329,2]
[378322069,1754825445007,-233.74582954,0.00022365,2]
[378322071,1754825445016,-460.0,0.0002243,2]
[378322073,1754825445025,-467.15069636,0.00022431,2]
[378322075,1754825445035,-460.0,0.00022431,2]
[378322077,1754825445043,-731.64,0.00022431,2]
[378322079,1754825445053,-896.6,0.00022431,2]
[378322081,1754825445062,-2537.65,0.00022431,2]
[378322083,1754825445071,-460.0,0.00022431,2]
[378322085,1754825445080,-1003.15,0.00022431,2]
[378322087,1754825445090,-460.0,0.00022431,2]
[378322089,1754825445100,-460.0,0.00022431,2]
[378322091,1754825445109,-464.59,0.00022431,2]
[378322093,1754825445119,-460.0,0.00022431,2]
[378322095,1754825445129,-460.0,0.00022431,2]
[378322097,1754825445139,-460.0,0.00022431,2]
[378322099,1754825445151,-900.83,0.00022431,2]
[378322102,1754825445161,-2000.0,0.00022516,2]
[378322103,1754825445170,-1200.0,0.00022521,2]
[378322105,1754825445179,-1000.0,0.00022521,2]
[378322107,1754825445189,-1000.0,0.00022521,2]
[378322109,1754825445200,-460.0,0.0002253,2]
[378322112,1754825445211,-460.0,0.0002253,2]
[378322114,1754825445223,-2411.13,0.0002253,2]
[378322116,1754825445232,-522.04,0.0002253,2]
[378322117,1754825445242,-460.0,0.00022531,2]
[378322119,1754825445251,-744.78,0.00022531,2]
[378322121,1754825445260,-550.24,0.00022531,2]
[378322124,1754825445270,-460.0,0.00022531,2]
[378322125,1754825445280,-476.85,0.00022531,2]
[378322127,1754825445290,-460.0,0.00022531,2]
[378322130,1754825445301,-2087.41,0.00022531,2]
[378322132,1754825445311,-520.53,0.00022531,2]
[378322134,1754825445320,-300.0,0.0002255,2]
[378322136,1754825445330,-717.2,0.00022567,2]
[378322138,1754825445339,-460.0,0.00022704,2]
[378322140,1754825445350,-460.0,0.00022705,2]
[378322142,1754825445359,-731.64,0.00022705,2]
[378322144,1754825445368,-896.6,0.00022705,2]
[378322146,1754825445377,-2537.65,0.00022705,2]
[378322148,1754825445386,-460.0,0.00022705,2]
[378322150,1754825445395,-1003.15,0.00022705,2]
[378322152,1754825445405,-460.0,0.00022705,2]
[378322154,1754825445414,-460.0,0.00022705,2]
[378322156,1754825445424,-464.59,0.00022705,2]
[378322158,1754825445434,-468.00330923,0.00022705,2]
[378322160,1754825445443,-460.0,0.00022705,2]
[378322162,1754825445453,-460.0,0.00022705,2]
[378322164,1754825445462,-900.83,0.00022705,2]
[378322166,1754825445472,-300.0,0.00022721,2]
[378322168,1754825445481,-1034.72707155,0.00022792,2]
[378322170,1754825445490,-460.0,0.00022804,2]
[378322172,1754825445499,-460.0,0.00022804,2]
[378322174,1754825445509,-2411.13,0.00022804,2]
[378322176,1754825445518,-522.04,0.00022804,2]
[378322178,1754825445528,-460.0,0.00022805,2]
[378322180,1754825445537,-744.78,0.00022805,2]
[378322182,1754825445547,-550.24,0.00022805,2]
[378322184,1754825445556,-460.0,0.00022805,2]
[378322186,1754825445565,-476.85,0.00022805,2]
[378322188,1754825445575,-460.0,0.00022805,2]
[378322190,1754825445584,-2087.41,0.00022805,2]
[378322192,1754825445593,-520.53,0.00022805,2]
[378322194,1754825445602,-717.2,0.00022841,2]
[378322196,1754825445612,-3502.60161591,0.0002285,2]
[378322198,1754825445621,-308.663711,0.00022857,7]
[378322200,1754825445630,-308.663711,0.00022857,7]
[378322202,1754825445639,-151.0,0.00022857,7]
[378322204,1754825445648,-231.7801,0.00022857,7]
[378322206,1754825445657,-260.0,0.00022877,2]
[378322208,1754825445666,-460.0,0.00022978,2]
[378322210,1754825445676,-460.0,0.00022979,2]
[378322212,1754825445685,-731.64,0.00022979,2]
[378322214,1754825445694,-896.6,0.00022979,2]
[378322216,1754825445703,-2537.65,0.00022979,2]
[378322218,1754825445712,-460.0,0.00022979,2]
[378322220,1754825445721,-1003.15,0.00022979,2]
[378322222,1754825445730,-460.0,0.00022979,2]
[378322223,1754825445740,-460.0,0.00022979,2]
[378322225,1754825445749,-464.59,0.00022979,2]
[378322228,1754825445759,-460.0,0.00022979,2]
[378322229,1754825445768,-460.0,0.00022979,2]
[378322231,1754825445777,-900.83,0.00022979,2]
[378322233,1754825445787,-160.0,0.00023,2]
[378322235,1754825445796,-193.93783112,0.00023,2]
[378322237,1754825445805,-1359.7280243,0.00023,2]
[378322239,1754825445814,-1340.43618727,0.00023,2]
[378322241,1754825445823,-1516.34251529,0.00023064,2]
[378322243,1754825445832,-1800.0,0.00023068,2]
[378322245,1754825445841,-1500.0,0.00023068,2]
[378322247,1754825445850,-562.71469188,0.00023068,2]
[378322249,1754825445860,-460.0,0.00023078,2]
[378322251,1754825445869,-460.0,0.00023078,2]
[378322253,1754825445878,-2411.13,0.00023078,2]
[378322255,1754825445888,-522.04,0.00023078,2]
[378322257,1754825445897,-460.0,0.00023079,2]
[378322259,1754825445906,-744.78,0.00023079,2]
[378322261,1754825445915,-550.24,0.00023079,2]
[378322263,1754825445925,-460.0,0.00023079,2]
[378322265,1754825445934,-476.85,0.00023079,2]
[378322267,1754825445943,-460.0,0.00023079,2]
[378322269,1754825445952,-2087.41,0.00023079,2]
[378322271,1754825445962,-520.53,0.00023079,2]
[378322273,1754825445971,-717.2,0.00023115,2]
[378322275,1754825445981,-1105.5,0.00023192,2]
[378322277,1754825445990,-372.91866161,0.00023233,2]
[378322279,1754825446000,-500.0,0.00023233,2]
[378322281,1754825446010,-500.0,0.00023233,2]
[378322283,1754825446019,-500.0,0.00023233,2]
[378322285,1754825446028,-460.0,0.00023252,2]
[378322287,1754825446037,-460.0,0.00023253,2]
[378322289,1754825446046,-731.64,0.00023253,2]
[378322291,1754825446055,-896.6,0.00023253,2]
[378322293,1754825446065,-2537.65,0.00023253,2]
[378322295,1754825446074,-460.0,0.00023253,2]
[378322297,1754825446084,-1003.15,0.00023253,2]
[378322299,1754825446093,-460.0,0.00023253,2]
[378322301,1754825446102,-460.0,0.00023253,2]
[378322303,1754825446112,-464.59,0.00023253,2]
[378322305,1754825446122,-460.0,0.00023253,2]
[378322307,1754825446132,-460.0,0.00023253,2]
[378322310,1754825446141,-900.83,0.00023253,2]
[378322312,1754825446154,-450.0,0.00023268,2]
[378322313,1754825446164,-1010.51930169,0.00023268,2]
[378322315,1754825446174,-308.663711,0.00023286,7]
[378322318,1754825446183,-308.663711,0.00023286,7]
[378322319,1754825446193,-151.0,0.00023286,7]
[378322322,1754825446203,-500.0,0.00023288,2]
[378322323,1754825446213,-150.0,0.00023341,2]
[378322326,1754825446223,-150.077,0.00023341,2]
[378322328,1754825446233,-460.0,0.00023352,2]
[378322330,1754825446243,-460.0,0.00023352,2]
[378322332,1754825446252,-2411.13,0.00023352,2]
[378322334,1754825446261,-522.04,0.00023352,2]
[378322336,1754825446270,-460.0,0.00023353,2]
[378322337,1754825446279,-744.78,0.00023353,2]
[378322339,1754825446288,-550.24,0.00023353,2]
[378322341,1754825446297,-460.0,0.00023353,2]
[378322343,1754825446306,-476.85,0.00023353,2]
[378322345,1754825446316,-460.0,0.00023353,2]
[378322347,1754825446325,-2087.41,0.00023353,2]
[378322349,1754825446334,-520.53,0.00023353,2]
[378322351,1754825446343,-717.2,0.00023389,2]
[378322353,1754825446352,-5179.06282851,0.00023409,2]
[378322355,1754825446361,-360.0,0.00023424,2]
[378322357,1754825446370,-393.0,0.00023459,2]
[378322359,1754825446379,-197.87,0.00023482,2]
[378322361,1754825446389,-1499.63398545,0.00023498,2]
[378322363,1754825446398,-1000.0,0.000235,2]
[378322365,1754825446407,-308.663711,0.00023508,7]
[378322367,1754825446418,-308.663711,0.00023508,7]
[378322369,1754825446427,-151.0,0.00023508,7]
[378322371,1754825446437,-393.0,0.0002352,2]
[378322373,1754825446446,-460.0,0.00023526,2]
[378322375,1754825446456,-460.0,0.00023527,2]
[378322377,1754825446465,-731.64,0.00023527,2]
[378322379,1754825446474,-896.6,0.00023527,2]
[378322381,1754825446484,-2537.65,0.00023527,2]
[378322383,1754825446493,-379.36,0.00023527,2]
[378322385,1754825446502,-1003.15,0.00023527,2]
[378322388,1754825446512,-460.0,0.00023527,2]
[378322390,1754825446522,-460.0,0.00023527,2]
[378322392,1754825446531,-464.59,0.00023527,2]
[378322393,1754825446540,-593.14943519,0.00023527,2]
[378322396,1754825446550,-460.0,0.00023527,2]
[378322398,1754825446559,-900.83,0.00023527,2]
[378322400,1754825446569,-382.0,0.0002355,3]
[378322402,1754825446578,-2400.0,0.00023616,2]
[378322403,1754825446587,-2000.0,0.00023616,2]
[378322405,1754825446597,-460.0,0.00023626,2]
[378322407,1754825446606,-460.0,0.00023626,2]
[378322409,1754825446615,-2411.13,0.00023626,2]
[378322411,1754825446624,-522.04,0.00023626,2]
[378322413,1754825446633,-382.08834214,0.00023627,2]
[378322415,1754825446643,-744.78,0.00023627,2]
[378322417,1754825446652,-550.24,0.00023627,2]
[378322419,1754825446662,-460.0,0.00023627,2]
[378322421,1754825446674,-476.85,0.00023627,2]
[378322423,1754825446684,-460.0,0.00023627,2]
[378322425,1754825446694,-2087.41,0.00023627,2]
[378322427,1754825446703,-520.53,0.00023627,2]
[378322429,1754825446712,-717.2,0.00023663,2]
[378322431,1754825446723,-151.0,0.000237,7]
[378322433,1754825446732,-587.0,0.00023712,2]
[378322435,1754825446741,-971.0,0.00023722,2]
[378322437,1754825446751,-2150.0,0.00023722,2]
[378322439,1754825446761,-636.0,0.00023722,2]
[378322440,1754825446771,-408.0,0.00023722,2]
[378322441,1754825446781,-1000.0,0.00023781,2]
[378322442,1754825446791,-1000.0,0.00023781,2]
[378322443,1754825446800,-1000.0,0.00023781,2]
[378322444,1754825446809,-1034.72707155,0.00023795,2]
[378322445,1754825446820,-460.0,0.000238,2]
[378322446,1754825446829,-460.0,0.00023801,2]
[378322447,1754825446839,-731.64,0.00023801,2]
[378322448,1754825446849,-896.6,0.00023801,2]
[378322449,1754825446858,-2537.65,0.00023801,2]
[378322450,1754825446868,-1003.15,0.00023801,2]
[378322451,1754825446877,-460.0,0.00023801,2]
[378322452,1754825446886,-460.0,0.00023801,2]
[378322453,1754825446896,-464.59,0.00023801,2]
[378322454,1754825446905,-460.0,0.00023801,2]
[378322455,1754825446914,-900.83,0.00023801,2]
[378322456,1754825446927,-600.0,0.00023816,2]
[378322457,1754825446937,-308.663711,0.00023865,7]
[378322458,1754825446947,-308.663711,0.00023865,7]
[378322459,1754825446956,-151.0,0.00023865,7]
[378322460,1754825446965,-4556.80004899,0.0002388,2]
[378322461,1754825446974,-515.99,0.000239,2]
[378322463,1754825446983,-170.66224261,0.000239,2]
[378322465,1754825446992,-2411.13,0.000239,2]
[378322467,1754825447001,-522.04,0.000239,2]
[378322469,1754825447011,-744.78,0.00023901,2]
[378322471,1754825447020,-550.24,0.00023901,2]
[378322473,1754825447030,-460.0,0.00023901,2]
[378322475,1754825447039,-476.85,0.00023901,2]
[378322477,1754825447048,-460.0,0.00023901,2]
[378322479,1754825447057,-2087.41,0.00023901,2]
[378322481,1754825447067,-520.53,0.00023901,2]
[378322483,1754825447076,-150.0,0.00023924,2]
[378322485,1754825447085,-717.2,0.00023937,2]
[378322487,1754825447095,-659.0,0.00023941,2]
[378322489,1754825447104,-393.0,0.00023953,2]
[378322491,1754825447114,-460.0,0.00023972,2]
[378322493,1754825447123,-393.0,0.00023973,2]
[378322495,1754825447132,-393.0,0.00023991,2]
[378322497,1754825447142,-1700.03605386,0.00024,2]
[378322499,1754825447155,-323.08855856,0.00024,2]
[378322501,1754825447164,-455.63130091,0.00024,2]
[378322503,1754825447176,-220.329,0.00024024,2]
[378322505,1754825447185,-250.0,0.00024024,2]
[378322507,1754825447194,-152.201,0.00024024,2]
[378322509,1754825447204,-250.0,0.00024024,2]
[378322511,1754825447214,-260.992,0.00024024,2]
[378322513,1754825447224,-245.0,0.00024024,2]
[378322515,1754825447233,-219.726,0.00024024,2]
[378322517,1754825447242,-393.0,0.00024027,2]
[378322519,1754825447252,-393.0,0.00024037,2]
[378322521,1754825447261,-460.0,0.00024074,2]
[378322524,1754825447272,-460.0,0.00024075,2]
[378322526,1754825447281,-731.64,0.00024075,2]
[378322528,1754825447291,-896.6,0.00024075,2]
[378322530,1754825447301,-2537.65,0.00024075,2]
[378322532,1754825447310,-1003.15,0.00024075,2]
[378322534,1754825447320,-460.0,0.00024075,2]
[378322536,1754825447329,-460.0,0.00024075,2]
[378322538,1754825447338,-464.59,0.00024075,2]
[378322540,1754825447348,-460.0,0.00024075,2]
[378322542,1754825447357,-900.83,0.00024075,2]
[378322544,1754825447366,-151.0,0.000241,8]
[378322545,1754825447376,-3000.0,0.00024164,2]
[378322548,1754825447385,-1555.93351593,0.00024164,2]
[378322549,1754825447395,-2411.13,0.00024174,2]
[378322562,1754825447488,-522.04,0.00024174,2]
[378322564,1754825447508,-744.78,0.00024175,2]
[378322566,1754825447518,-550.24,0.00024175,2]
[378322568,1754825447528,-460.0,0.00024175,2]
[378322570,1754825447537,-476.85,0.00024175,2]
[378322572,1754825447546,-460.0,0.00024175,2]
[378322574,1754825447555,-2087.41,0.00024175,2]
[378322576,1754825447564,-520.53,0.00024175,2]
[378322578,1754825447574,-382.0,0.00024181,3]
[378322580,1754825447583,-393.0,0.00024202,2]
[378322582,1754825447592,-717.2,0.00024211,2]
[378322584,1754825447602,-308.663711,0.00024295,7]
[378322586,1754825447612,-308.663711,0.00024295,7]
[378322588,1754825447621,-151.0,0.00024295,7]
[378322590,1754825447630,-153.0,0.000243,2]
[378322592,1754825447639,-153.0,0.000243,2]
[378322594,1754825447648,-151.0,0.00024308,7]
[378322596,1754825447657,-151.0,0.00024308,7]
[378322598,1754825447666,-1500.0,0.00024329,2]
[378322600,1754825447675,-1500.0,0.00024329,2]
[378322602,1754825447685,-1500.0,0.00024329,2]
[378322603,1754825447694,-460.0,0.00024348,2]
[378322605,1754825447703,-460.0,0.00024349,2]
[378322607,1754825447713,-731.64,0.00024349,2]
[378322609,1754825447722,-896.6,0.00024349,2]
[378322611,1754825447732,-2537.65,0.00024349,2]
[378322613,1754825447741,-1003.15,0.00024349,2]
[378322615,1754825447750,-460.0,0.00024349,2]
[378322617,1754825447760,-460.0,0.00024349,2]
[378322619,1754825447770,-464.59,0.00024349,2]
[378322621,1754825447779,-460.0,0.00024349,2]
[378322624,1754825447788,-900.83,0.00024349,2]
[378322626,1754825447797,-393.0,0.00024356,2]
[378322627,1754825447807,-750.0,0.00024364,2]
[378322629,1754825447817,-393.0,0.00024367,2]
[378322631,1754825447826,-393.0,0.00024369,2]
[378322632,1754825447836,-1105.5,0.00024383,2]
[378322633,1754825447846,-393.0,0.00024423,2]
[378322634,1754825447856,-197.87,0.00024443,2]
[378322635,1754825447865,-2411.13,0.00024448,2]
[378322636,1754825447875,-522.04,0.00024448,2]
[378322637,1754825447884,-744.78,0.00024449,2]
[378322638,1754825447893,-550.24,0.00024449,2]
[378322639,1754825447903,-460.0,0.00024449,2]
[378322640,1754825447912,-476.85,0.00024449,2]
[378322641,1754825447922,-460.0,0.00024449,2]
[378322642,1754825447932,-2087.41,0.00024449,2]
[378322643,1754825447942,-717.2,0.00024485,2]
[378322644,1754825447951,-164.312037,0.000245,2]
[378322646,1754825447960,-151.0,0.000245,7]
[378322647,1754825447969,-659.4625897,0.000245,2]
[378322649,1754825447978,-560.0,0.0002452,2]
[378322651,1754825447988,-308.663711,0.00024526,7]
[378322653,1754825447997,-308.663711,0.00024526,7]
[378322655,1754825448006,-151.0,0.00024526,7]
[378322657,1754825448016,-393.0,0.00024547,2]
[378322659,1754825448025,-460.0,0.00024622,2]
[378322661,1754825448035,-460.0,0.00024623,2]
[378322663,1754825448044,-731.64,0.00024623,2]
[378322665,1754825448054,-896.6,0.00024623,2]
[378322667,1754825448063,-2537.65,0.00024623,2]
[378322669,1754825448073,-1003.15,0.00024623,2]
[378322671,1754825448083,-460.0,0.00024623,2]
[378322673,1754825448092,-460.0,0.00024623,2]
[378322675,1754825448103,-464.59,0.00024623,2]
[378322677,1754825448112,-460.0,0.00024623,2]
[378322679,1754825448122,-900.83,0.00024623,2]
[378322681,1754825448131,-348400.6261524,0.00024638,2]
[378322683,1754825448140,-215399.51134933,0.0002465,2]
[378322720,1754825448500,-460.0,0.00020786,2]
[378322722,1754825448509,-128.26710782,0.00020787,2]
[378322724,1754825448520,-331.73289218,0.00020787,2]
[378322726,1754825448530,-442.52,0.0002106,2]
[378322728,1754825448540,-460.0,0.00021061,2]
[378322730,1754825448550,-500.0,0.00022129,2]